fUST/lending_fUST_20250722
["ID","MTS","AMOUNT","RATE_DAILY","PERIOD"]
[373892419,1753140647521,-474.22,0.00018414,2]
[373892421,1753140647531,-460.0,0.00018414,2]
[373892423,1753140647540,-460.0,0.00018414,2]
[373892425,1753140647549,-460.0,0.00018414,2]
[373892427,1753140647559,-539.6831129,0.00018414,2]
[373892429,1753140647568,-475.17,0.00018414,2]
[373892431,1753140647577,-460.0,0.00018414,2]
[373892433,1753140647586,-460.0,0.00018414,2]
[373892435,1753140647595,-608.05,0.00018414,2]
[373892437,1753140647604,-714.49,0.00018414,2]
[373892439,1753140647614,-460.0,0.00018414,2]
[373892441,1753140647623,-460.0,0.00018414,2]
[373892443,1753140647633,-460.0,0.00018414,2]
[373892445,1753140647642,-460.0,0.00018414,2]
[373892447,1753140647651,-460.0,0.00018414,2]
[373892449,1753140647661,-473.15,0.00018414,2]
[373892451,1753140647670,-460.0,0.00018414,2]
[373892453,1753140647680,-995.06,0.00018414,2]
[373892455,1753140647690,-460.0,0.00018414,2]
[373892457,1753140647699,-460.0,0.00018414,2]
[373892459,1753140647708,-273.821254,0.00018414,2]
[373892461,1753140647718,-460.0,0.00018414,2]
[373892463,1753140647727,-460.0,0.00018414,2]
[373892465,1753140647736,-151.0,0.00018414,2]
[373892467,1753140647746,-460.0,0.00018414,2]
[373892469,1753140647755,-249.426618,0.00018414,2]
[373892471,1753140647765,-460.0,0.00018414,2]
[373892473,1753140647774,-1002.52,0.00018414,2]
[373892475,1753140647783,-460.0,0.00018414,2]
[373892477,1753140647792,-904.47,0.00018414,2]
[373892479,1753140647802,-842.93,0.00018414,2]
[373892482,1753140647812,-151.0,0.00018414,2]
[373892483,1753140647822,-1466.53,0.00018414,2]
[373892486,1753140647831,-460.0,0.00018414,2]
[373892488,1753140647841,-460.0,0.00018414,2]
[373892490,1753140647859,-460.0,0.00018414,2]
[373892492,1753140647869,-460.0,0.00018414,2]
[373892494,1753140647878,-151.0,0.00018414,2]
[373892496,1753140647888,-244.40463274,0.00018414,2]
[373892497,1753140647897,-460.0,0.00018414,2]
[373892498,1753140647907,-460.0,0.00018414,2]
[373892499,1753140647916,-460.0,0.00018414,2]
[373892500,1753140647926,-460.0,0.00018414,2]
[373892501,1753140647936,-460.0,0.00018414,2]
[373892502,1753140647946,-460.0,0.00018414,2]
[373892503,1753140647955,-460.0,0.00018414,2]
[373892504,1753140647965,-460.0,0.00018414,2]
[373892505,1753140647974,-460.0,0.00018414,2]
[373892506,1753140647983,-681.98,0.00018414,2]
[373892507,1753140647992,-520.0,0.00018414,2]
[373892508,1753140648001,-1019.82,0.00018414,2]
[373892509,1753140648011,-1245.38,0.00018414,2]
[373892510,1753140648020,-460.0,0.00018414,2]
[373892511,1753140648029,-700.42,0.00018414,2]
[373892512,1753140648038,-681.52,0.00018414,2]
[373892513,1753140648047,-519.27,0.00018414,2]
[373892514,1753140648057,-460.0,0.00018414,2]
[373892515,1753140648067,-460.0,0.00018415,2]
[373892516,1753140648076,-460.0,0.00018415,2]
[373892517,1753140648086,-1750.53,0.00018416,2]
[373892518,1753140648095,-1045.06,0.00018416,2]
[373892519,1753140648105,-460.0,0.00018416,2]
[373892520,1753140648114,-1642.26,0.00018416,2]
[373892521,1753140648123,-460.0,0.00018416,2]
[373892522,1753140648132,-151.0,0.00018416,2]
[373892523,1753140648142,-151.0,0.00018417,2]
[373892524,1753140648152,-186.032,0.00018417,2]
[373892525,1753140648161,-186.032,0.00018417,2]
[373892526,1753140648170,-151.0,0.00018417,2]
[373892527,1753140648179,-151.0,0.00018417,2]
[373892528,1753140648189,-460.0,0.00018417,2]
[373892529,1753140648198,-460.0,0.00018417,2]
[373892530,1753140648207,-151.0,0.00018417,2]
[373892531,1753140648217,-460.0,0.00018417,2]
[373892532,1753140648226,-460.0,0.00018417,2]
[373892533,1753140648236,-315.387487,0.00018417,2]
[373892534,1753140648246,-315.387487,0.00018417,2]
[373892535,1753140648256,-460.0,0.00018417,2]
[373892536,1753140648269,-460.0,0.00018417,2]
[373892537,1753140648279,-158.405763,0.00018417,2]
[373892538,1753140648288,-158.405763,0.00018417,2]
[373892539,1753140648298,-151.0,0.00018417,2]
[373892540,1753140648309,-6853.84,0.00018417,2]
[373892541,1753140648319,-1820.72,0.00018417,2]
[373892542,1753140648329,-460.0,0.00018417,2]
[373892543,1753140648338,-2086.57,0.00018417,2]
[373892544,1753140648347,-151.0,0.00018418,2]
[373892545,1753140648358,-151.0,0.00018418,2]
[373892546,1753140648367,-191.739403,0.00018418,2]
[373892547,1753140648376,-152.04217,0.00018418,2]
[373892551,1753140648456,-191.739403,0.00018418,2]
[373892553,1753140648466,-3241.4,0.00018418,2]
[373892555,1753140648476,-611.95,0.00018418,2]
[373892557,1753140648486,-406.05746819,0.00018418,2]
[373892559,1753140648495,-151.0,0.0001842,2]
[373892561,1753140648504,-1986.06,0.0001842,2]
[373892562,1753140648514,-460.0,0.0001842,2]
[373892563,1753140648523,-460.0,0.0001842,2]
[373892564,1753140648533,-1000.0,0.00018421,2]
[373892565,1753140648543,-151.0,0.00018425,2]
[373892566,1753140648552,-151.0,0.00018425,2]
[373892567,1753140648562,-207.090637,0.00018425,2]
[373892568,1753140648571,-160.93346759,0.00018425,2]
[373892569,1753140648580,-1753.0,0.00018425,2]
[373892570,1753140648589,-1753.0,0.00018425,2]
[373892571,1753140648599,-1753.0,0.00018425,2]
[373892572,1753140648608,-1753.0,0.00018425,2]
[373892573,1753140648617,-154.0,0.00018425,2]
[373892574,1753140648628,-154.0,0.00018425,2]
[373892575,1753140648637,-1753.0,0.00018425,2]
[373892576,1753140648648,-255.74324676,0.00018425,2]
[373892577,1753140648657,-1753.0,0.00018425,2]
[373892578,1753140648667,-1753.0,0.00018425,2]
[373892579,1753140648676,-1753.0,0.00018425,2]
[373892580,1753140648686,-1753.0,0.00018425,2]
[373892581,1753140648695,-1753.0,0.00018425,2]
[373892582,1753140648704,-1753.0,0.00018425,2]
[373892583,1753140648714,-1753.0,0.00018425,2]
[373892584,1753140648723,-1753.0,0.00018425,2]
[373892585,1753140648733,-1741.0,0.00018425,2]
[373892586,1753140648743,-324.0,0.00018425,2]
[373892587,1753140648754,-324.0,0.00018425,2]
[373892588,1753140648763,-324.0,0.00018425,2]
[373892589,1753140648773,-324.0,0.00018425,2]
[373892590,1753140648783,-324.0,0.00018425,2]
[373892591,1753140648792,-324.0,0.00018425,2]
[373892592,1753140648802,-324.0,0.00018425,2]
[373892593,1753140648812,-324.0,0.00018425,2]
[373892594,1753140648821,-324.0,0.00018425,2]
[373892595,1753140648831,-324.0,0.00018425,2]
[373892596,1753140648841,-324.0,0.00018425,2]
[373892597,1753140648850,-324.0,0.00018425,2]
[373892598,1753140648859,-324.0,0.00018425,2]
[373892599,1753140648869,-324.0,0.00018425,2]
[373892600,1753140648878,-324.0,0.00018425,2]
[373892601,1753140648888,-324.0,0.00018425,2]
[373892602,1753140648898,-324.0,0.00018425,2]
[373892603,1753140648907,-324.0,0.00018425,2]
[373892604,1753140648917,-324.0,0.00018425,2]
[373892605,1753140648926,-324.0,0.00018425,2]
[373892606,1753140648937,-324.0,0.00018425,2]
[373892607,1753140648947,-324.0,0.00018425,2]
[373892608,1753140648956,-324.0,0.00018425,2]
[373892609,1753140648965,-324.0,0.00018425,2]
[373892610,1753140648975,-324.0,0.00018425,2]
[373892611,1753140648984,-324.0,0.00018425,2]
[373892612,1753140648994,-324.0,0.00018425,2]
[373892613,1753140649003,-324.0,0.00018425,2]
[373892614,1753140649013,-324.0,0.00018425,2]
[373892615,1753140649022,-324.0,0.00018425,2]
[373892616,1753140649031,-324.0,0.00018425,2]
[373892617,1753140649041,-189.18848528,0.00018425,2]
[373892618,1753140649051,-324.0,0.00018425,2]
[373892619,1753140649060,-2373.76,0.00018432,2]
[373892620,1753140649070,-1158.85,0.00018432,2]
[373892621,1753140649079,-151.0,0.00018438,2]
[373892622,1753140649089,-151.0,0.00018438,2]
[373892623,1753140649098,-151.0,0.00018438,2]
[373892624,1753140649108,-151.0,0.00018438,2]
[373892625,1753140649117,-151.0,0.00018438,2]
[373892626,1753140649127,-258.832452,0.00018438,2]
[373892627,1753140649136,-258.832452,0.00018438,2]
[373892628,1753140649147,-151.0,0.00018438,2]
[373892629,1753140649157,-178.132362,0.00018438,2]
[373892630,1753140649167,-228.233443,0.00018438,2]
[373892631,1753140649177,-228.233443,0.00018438,2]
[373892633,1753140649186,-151.0,0.00018438,2]
[373892635,1753140649196,-151.0,0.00018438,2]
[373892637,1753140649205,-1172.0,0.00018442,2]
[373892639,1753140649215,-245.0,0.00018442,2]
[373892641,1753140649224,-500.0,0.00018442,2]
[373892642,1753140649234,-157.89194858,0.00018442,2]
[373892644,1753140649243,-866.0,0.00018442,2]
[373892646,1753140649252,-219.34497079,0.00018442,2]
[373892648,1753140649264,-151.0,0.00018442,2]
[373892650,1753140649273,-209.95428927,0.00018484,2]
[373892651,1753140649282,-500.0,0.00018484,2]
[373892653,1753140649292,-500.0,0.00018484,2]
[373892655,1753140649302,-161.07695978,0.00018484,2]
[373892657,1753140649311,-500.0,0.00018484,2]
[373892659,1753140649320,-500.0,0.00018484,2]
[373892661,1753140649330,-500.0,0.00018484,2]
[373892663,1753140649341,-500.0,0.00018484,2]
[373892665,1753140649352,-257.83585341,0.00018484,2]
[373892666,1753140649362,-154.95794722,0.00018484,2]
[373892668,1753140649371,-500.0,0.00018484,2]
[373892670,1753140649381,-500.0,0.00018484,2]
[373892672,1753140649390,-500.0,0.00018484,2]
[373892674,1753140649400,-500.0,0.00018484,2]
[373892676,1753140649409,-166.85638544,0.00018484,2]
[373892678,1753140649423,-500.0,0.00018484,2]
[373892680,1753140649432,-497.86177951,0.00018484,2]
[373892682,1753140649441,-500.0,0.00018484,2]
[373892684,1753140649450,-500.0,0.00018484,2]
[373892686,1753140649459,-500.0,0.00018484,2]
[373892687,1753140649469,-500.0,0.00018484,2]
[373892689,1753140649478,-502.09627277,0.00018484,2]
[373892697,1753140649551,-500.0,0.00018484,2]
[373892699,1753140649561,-500.0,0.00018484,2]
[373892701,1753140649571,-3771.58945438,0.00018484,2]
[373892703,1753140649582,-359.0,0.00018485,2]
[373892705,1753140649591,-500.0,0.00018486,2]
[373892706,1753140649600,-500.0,0.00018486,2]
[373892708,1753140649609,-500.0,0.00018486,2]
[373892710,1753140649618,-500.0,0.00018486,2]
[373892712,1753140649628,-500.0,0.00018486,2]
[373892714,1753140649637,-500.0,0.00018486,2]
[373892716,1753140649647,-500.0,0.00018486,2]
[373892718,1753140649656,-500.0,0.00018486,2]
[373892719,1753140649666,-500.0,0.00018486,2]
[373892721,1753140649675,-151.0,0.00018578,2]
[373892723,1753140649684,-151.0,0.00018578,2]
[373892725,1753140649693,-25000.0,0.00018578,2]
[373892727,1753140649702,-460.0,0.00018588,2]
[373892729,1753140649712,-460.0,0.00018589,2]
[373892731,1753140649721,-489.73626239,0.00018589,2]
[373892733,1753140649731,-460.0,0.00018589,2]
[373892735,1753140649741,-527.56,0.00018589,2]
[373892736,1753140649750,-460.0,0.00018589,2]
[373892738,1753140649760,-291.83764227,0.00018589,2]
[373892740,1753140649770,-460.0,0.00018589,2]
[373892742,1753140649779,-460.0,0.00018589,2]
[373892744,1753140649788,-460.0,0.00018589,2]
[373892746,1753140649798,-460.0,0.00018589,2]
[373892748,1753140649807,-460.0,0.00018589,2]
[373892750,1753140649816,-460.0,0.00018589,2]
[373892752,1753140649826,-460.0,0.00018589,2]
[373892753,1753140649835,-460.0,0.00018589,2]
[373892755,1753140649844,-460.0,0.00018589,2]
[373892757,1753140649853,-460.0,0.00018589,2]
[373892759,1753140649863,-460.0,0.00018589,2]
[373892761,1753140649872,-155.44150554,0.00018589,2]
[373892763,1753140649881,-460.0,0.00018589,2]
[373892764,1753140649891,-460.0,0.00018589,2]
[373892766,1753140649901,-460.0,0.00018589,2]
[373892768,1753140649911,-460.0,0.00018589,2]
[373892770,1753140649920,-460.0,0.00018589,2]
[373892772,1753140649929,-460.0,0.00018589,2]
[373892774,1753140649939,-460.0,0.00018589,2]
[373892776,1753140649948,-460.0,0.00018589,2]
[373892778,1753140649957,-3416.98,0.00018589,2]
[373892779,1753140649967,-460.0,0.00018589,2]
[373892781,1753140649976,-151.0,0.00018589,2]
[373892783,1753140649985,-460.0,0.00018589,2]
[373892785,1753140649994,-460.0,0.00018589,2]
[373892787,1753140650004,-460.0,0.00018589,2]
[373892790,1753140650021,-460.0,0.00018589,2]
[373892792,1753140650040,-460.0,0.00018589,2]
[373892795,1753140650057,-460.0,0.00018589,2]
[373892798,1753140650079,-460.0,0.00018589,2]
[373892801,1753140650098,-661.93,0.00018589,2]
[373892804,1753140650116,-460.0,0.00018589,2]
[373892806,1753140650134,-477.47,0.00018589,2]
[373892809,1753140650149,-3942.78,0.00018589,2]
[373892812,1753140650163,-460.0,0.00018589,2]
[373892815,1753140650183,-570.71845186,0.00018589,2]
[373892818,1753140650202,-1045.76,0.00018589,2]
[373892821,1753140650219,-460.0,0.00018589,2]
[373892823,1753140650233,-615.08,0.00018589,2]
[373892826,1753140650251,-460.0,0.00018589,2]
[373892828,1753140650266,-467.97606816,0.00018589,2]
[373892831,1753140650282,-460.0,0.00018589,2]
[373892834,1753140650295,-863.37,0.00018589,2]
[373892836,1753140650311,-3770.82,0.00018589,2]
[373892839,1753140650325,-460.0,0.00018589,2]
[373892841,1753140650341,-819.49,0.00018589,2]
[373892844,1753140650355,-460.0,0.00018589,2]
[373892846,1753140650370,-460.0,0.00018589,2]
[373892849,1753140650385,-460.0,0.00018589,2]
[373892851,1753140650399,-460.0,0.00018589,2]
[373892854,1753140650414,-460.0,0.00018589,2]
[373892857,1753140650429,-460.0,0.00018589,2]
[373892859,1753140650442,-200.01223836,0.00018589,2]
[373892862,1753140650457,-480.36,0.00018589,2]
[373892864,1753140650471,-2179.8,0.00018589,2]
[373892867,1753140650486,-460.0,0.00018589,2]
[373892869,1753140650501,-508.61,0.00018589,2]
[373892872,1753140650515,-484.85,0.00018589,2]
[373892874,1753140650530,-1540.02,0.00018589,2]
[373892877,1753140650543,-490.96951478,0.00018589,2]
[373892880,1753140650558,-463.6047221,0.00018589,2]
[373892882,1753140650573,-568.51,0.00018589,2]
[373892885,1753140650587,-6763.12,0.00018589,2]
[373892887,1753140650601,-151.0,0.00018589,2]
[373892890,1753140650616,-460.0,0.00018589,2]
[373892892,1753140650630,-747.93,0.00018589,2]
[373892894,1753140650644,-908.02,0.00018589,2]
[373892895,1753140650658,-2563.4,0.00018589,2]
[373892896,1753140650672,-152.187848,0.00018589,2]
[373892897,1753140650687,-460.0,0.00018589,2]
[373892898,1753140650701,-460.0,0.00018589,2]
[373892899,1753140650715,-460.0,0.00018589,2]
[373892900,1753140650729,-632.45,0.00018589,2]
[373892901,1753140650743,-460.0,0.00018589,2]
[373892902,1753140650757,-460.0,0.00018589,2]
[373892903,1753140650873,-460.0,0.00018589,2]
[373892904,1753140650886,-508.59,0.00018589,2]
[373892905,1753140650896,-999.79,0.00018589,2]
[373892906,1753140650905,-460.0,0.00018589,2]
[373892907,1753140650915,-500.0,0.00018589,2]
[373892908,1753140650924,-500.0,0.00018589,2]
[373892909,1753140650933,-500.0,0.00018589,2]
[373892910,1753140650942,-500.0,0.00018589,2]
[373892911,1753140650952,-500.0,0.00018589,2]
[373892912,1753140650961,-631.08532839,0.00018589,2]
[373892913,1753140650970,-476.54,0.00018589,2]
[373892914,1753140650978,-442.11005637,0.0001859,2]
[373892915,1753140650988,-460.0,0.0001859,2]
[373892916,1753140650997,-460.0,0.0001859,2]
[373892917,1753140651007,-460.0,0.0001859,2]
[373892918,1753140651016,-465.70627507,0.0001859,2]
[373892919,1753140651025,-891.32,0.0001859,2]
[373892920,1753140651035,-460.0,0.0001859,2]
[373892921,1753140651043,-460.0,0.0001859,2]
[373892922,1753140651053,-460.0,0.0001859,2]
[373892923,1753140651062,-460.0,0.0001859,2]
[373892924,1753140651072,-460.0,0.0001859,2]
[373892925,1753140651081,-477.98,0.0001859,2]
[373892926,1753140651090,-460.0,0.0001859,2]
[373892927,1753140651099,-460.0,0.0001859,2]
[373892928,1753140651108,-460.0,0.0001859,2]
[373892929,1753140651117,-460.0,0.0001859,2]
[373892930,1753140651126,-460.0,0.0001859,2]
[373892931,1753140651135,-1337.23,0.0001859,2]
[373892933,1753140651144,-460.0,0.0001859,2]
[373892934,1753140651153,-460.0,0.0001859,2]
[373892936,1753140651163,-460.0,0.0001859,2]
[373892938,1753140651172,-460.0,0.0001859,2]
[373892940,1753140651181,-460.0,0.0001859,2]
[373892942,1753140651191,-460.0,0.0001859,2]
[373892944,1753140651200,-460.0,0.0001859,2]
[373892946,1753140651209,-460.0,0.0001859,2]
[373892948,1753140651219,-460.0,0.0001859,2]
[373892950,1753140651228,-460.0,0.0001859,2]
[373892952,1753140651237,-460.0,0.0001859,2]
[373892954,1753140651246,-460.0,0.0001859,2]
[373892956,1753140651256,-216.39681154,0.0001859,2]
[373892958,1753140651270,-151.0,0.000186,2]
[373892960,1753140651279,-487.703978,0.00018615,2]
[373892962,1753140651288,-500.0,0.00018621,2]
[373892964,1753140651297,-1008.00352188,0.00018621,2]
[373892966,1753140651306,-151.0,0.00018624,2]
[373892968,1753140651317,-186.032,0.00018624,2]
[373892970,1753140651326,-186.032,0.00018624,2]
[373892972,1753140651336,-8389.27005442,0.00018624,2]
[373892974,1753140651347,-460.0,0.00018688,2]
[373892976,1753140651356,-460.0,0.00018688,2]
[373892978,1753140651367,-460.0,0.00018688,2]
[373892980,1753140651376,-460.0,0.00018688,2]
[373892982,1753140651386,-460.0,0.00018688,2]
[373892985,1753140651397,-460.0,0.00018688,2]
[373892987,1753140651407,-460.0,0.00018688,2]
[373892989,1753140651416,-460.0,0.00018688,2]
[373892991,1753140651426,-460.0,0.00018688,2]
[373892993,1753140651435,-460.0,0.00018688,2]
[373892995,1753140651444,-460.0,0.00018688,2]
[373892997,1753140651453,-460.0,0.00018688,2]
[373892999,1753140651462,-460.0,0.00018688,2]
[373893001,1753140651471,-460.0,0.00018688,2]
[373893003,1753140651481,-460.0,0.00018688,2]
[373893005,1753140651489,-460.0,0.00018688,2]
[373893007,1753140651499,-475.17,0.00018688,2]
[373893008,1753140651508,-460.0,0.00018688,2]
[373893010,1753140651517,-460.0,0.00018688,2]
[373893012,1753140651526,-608.05,0.00018688,2]
[373893015,1753140651536,-714.49,0.00018688,2]
[373893017,1753140651546,-460.0,0.00018688,2]
[373893019,1753140651555,-460.0,0.00018688,2]
[373893021,1753140651564,-460.0,0.00018688,2]
[373893023,1753140651574,-460.0,0.00018688,2]
[373893025,1753140651583,-460.0,0.00018688,2]
[373893027,1753140651592,-473.15,0.00018688,2]
[373893029,1753140651601,-460.0,0.00018688,2]
[373893031,1753140651611,-995.06,0.00018688,2]
[373893033,1753140651620,-460.0,0.00018688,2]
[373893035,1753140651630,-460.0,0.00018688,2]
[373893037,1753140651640,-460.0,0.00018688,2]
[373893039,1753140651650,-460.0,0.00018688,2]
[373893041,1753140651660,-460.0,0.00018688,2]
[373893043,1753140651669,-1002.52,0.00018688,2]
[373893045,1753140651679,-564.38885223,0.00018688,2]
[373893047,1753140651688,-904.47,0.00018688,2]
[373893049,1753140651698,-842.93,0.00018688,2]
[373893051,1753140651707,-1466.53,0.00018688,2]
[373893053,1753140651716,-460.0,0.00018688,2]
[373893055,1753140651725,-460.0,0.00018688,2]
[373893057,1753140651734,-460.0,0.00018688,2]
[373893059,1753140651744,-151.0,0.00018688,2]
[373893061,1753140651753,-460.0,0.00018688,2]
[373893063,1753140651762,-462.76349482,0.00018688,2]
[373893065,1753140651772,-460.0,0.00018688,2]
[373893067,1753140651781,-460.0,0.00018688,2]
[373893069,1753140651790,-460.0,0.00018688,2]
[373893071,1753140651799,-460.0,0.00018688,2]
[373893073,1753140651809,-460.0,0.00018688,2]
[373893075,1753140651818,-460.0,0.00018688,2]
[373893077,1753140651828,-681.98,0.00018688,2]
[373893079,1753140651838,-1019.82,0.00018688,2]
[373893081,1753140651847,-1245.38,0.00018688,2]
[373893083,1753140651857,-460.0,0.00018688,2]
[373893085,1753140651866,-700.42,0.00018688,2]
[373893087,1753140651876,-681.52,0.00018688,2]
[373893089,1753140651885,-519.27,0.00018688,2]
[373893091,1753140651895,-460.0,0.00018688,2]
[373893093,1753140651905,-460.0,0.00018689,2]
[373893095,1753140651914,-151.0,0.0001869,2]
[373893097,1753140651923,-229.937196,0.0001869,2]
[373893099,1753140651933,-229.937196,0.0001869,2]
[373893102,1753140651942,-151.846969,0.0001869,2]
[373893104,1753140651951,-315.387487,0.0001869,2]
[373893106,1753140651960,-315.387487,0.0001869,2]
[373893108,1753140651970,-151.0,0.0001869,2]
[373893110,1753140651979,-191.739403,0.0001869,2]
[373893112,1753140651988,-191.739403,0.0001869,2]
[373893114,1753140651998,-158.405763,0.0001869,2]
[373893116,1753140652007,-158.405763,0.0001869,2]
[373893118,1753140652016,-151.0,0.0001869,2]
[373893120,1753140652028,-1750.53,0.0001869,2]
[373893122,1753140652037,-1045.06,0.0001869,2]
[373893124,1753140652047,-460.0,0.0001869,2]
[373893126,1753140652064,-1642.26,0.0001869,2]
[373893128,1753140652084,-460.0,0.0001869,2]
[373893130,1753140652100,-151.0,0.00018691,2]
[373893132,1753140652109,-460.0,0.00018691,2]
[373893134,1753140652118,-460.0,0.00018691,2]
[373893136,1753140652128,-460.0,0.00018691,2]
[373893138,1753140652137,-460.0,0.00018691,2]
[373893140,1753140652146,-6853.84,0.00018691,2]
[373893142,1753140652155,-1820.72,0.00018691,2]
[373893144,1753140652165,-460.0,0.00018691,2]
[373893146,1753140652174,-2086.57,0.00018691,2]
[373893148,1753140652184,-151.0,0.00018692,2]
[373893150,1753140652193,-151.0,0.00018692,2]
[373893152,1753140652204,-151.0,0.00018692,2]
[373893154,1753140652213,-151.0,0.00018692,2]
[373893156,1753140652223,-3241.4,0.00018692,2]
[373893165,1753140652297,-611.95,0.00018692,2]
[373893168,1753140652316,-151.0,0.00018693,2]
[373893170,1753140652326,-1282.822924,0.00018693,2]
[373893172,1753140652336,-151.0,0.00018694,2]
[373893174,1753140652345,-186.032,0.00018694,2]
[373893176,1753140652355,-186.032,0.00018694,2]
[373893178,1753140652364,-151.0,0.00018694,2]
[373893180,1753140652373,-151.0,0.00018694,2]
[373893182,1753140652382,-151.0,0.00018694,2]
[373893184,1753140652391,-1986.06,0.00018694,2]
[373893186,1753140652400,-460.0,0.00018694,2]
[373893188,1753140652410,-460.0,0.00018694,2]
[373893190,1753140652418,-151.0,0.00018694,2]
[373893192,1753140652427,-151.0,0.000187,2]
[373893194,1753140652437,-2373.76,0.00018706,2]
[373893196,1753140652446,-1158.85,0.00018706,2]
[373893198,1753140652456,-1172.0,0.00018716,2]
[373893200,1753140652466,-500.0,0.00018716,2]
[373893202,1753140652475,-866.0,0.00018716,2]
[373893203,1753140652486,-245.0,0.00018716,2]
[373893205,1753140652496,-3771.58945438,0.00018761,2]
[373893207,1753140652506,-151.0,0.000188,2]
[373893210,1753140652516,-151.0,0.000188,2]
[373893212,1753140652525,-626.04258102,0.00018805,2]
[373893214,1753140652535,-505.51818972,0.00018844,2]
[373893216,1753140652544,-460.0,0.00018862,2]
[373893218,1753140652553,-460.0,0.00018863,2]
[373893220,1753140652562,-460.0,0.00018863,2]
[373893222,1753140652571,-465.70059702,0.00018863,2]
[373893224,1753140652580,-460.0,0.00018863,2]
[373893225,1753140652590,-460.0,0.00018863,2]
[373893228,1753140652600,-460.0,0.00018863,2]
[373893230,1753140652610,-460.0,0.00018863,2]
[373893232,1753140652619,-460.0,0.00018863,2]
[373893234,1753140652628,-460.0,0.00018863,2]
[373893236,1753140652637,-440.08222767,0.00018863,2]
[373893238,1753140652647,-226.42514195,0.00018863,2]
[373893240,1753140652655,-460.0,0.00018863,2]
[373893242,1753140652665,-460.0,0.00018863,2]
[373893244,1753140652674,-274.68720444,0.00018863,2]
[373893246,1753140652683,-151.0,0.00018863,2]
[373893248,1753140652692,-460.0,0.00018863,2]
[373893250,1753140652702,-460.0,0.00018863,2]
[373893252,1753140652712,-460.0,0.00018863,2]
[373893254,1753140652722,-460.0,0.00018863,2]
[373893256,1753140652731,-460.0,0.00018863,2]
[373893258,1753140652740,-460.0,0.00018863,2]
[373893260,1753140652750,-3416.98,0.00018863,2]
[373893262,1753140652759,-151.0,0.00018863,2]
[373893264,1753140652768,-258.832452,0.00018863,2]
[373893266,1753140652778,-258.832452,0.00018863,2]
[373893267,1753140652787,-151.0,0.00018863,2]
[373893269,1753140652797,-460.0,0.00018863,2]
[373893272,1753140652806,-460.0,0.00018863,2]
[373893273,1753140652815,-151.0,0.00018863,2]
[373893275,1753140652824,-460.0,0.00018863,2]
[373893278,1753140652834,-460.0,0.00018863,2]
[373893279,1753140652843,-460.0,0.00018863,2]
[373893281,1753140652852,-228.233443,0.00018863,2]
[373893283,1753140652861,-460.0,0.00018863,2]
[373893285,1753140652870,-228.233443,0.00018863,2]
[373893287,1753140652880,-460.0,0.00018863,2]
[373893289,1753140652889,-661.93,0.00018863,2]
[373893291,1753140652898,-460.0,0.00018863,2]